bitfinex/quotes_SOLUSD_20250507
["timestamp","ask_amount","ask_price","bid_price","bid_amount"]
[1746581689884,137.7,149.08,148.97,23.14910239]
[1746581690087,13.87128439,149.07,148.97,23.14910239]
[1746581690260,13.87128439,149.07,148.98,16.24]
[1746581690466,13.87128439,149.07,149.01,18.79181043]
[1746581691575,13.87128439,149.07,149.02,6.71050865]
[1746581691765,13.87128439,149.09,149.03,35.03181043]
[1746581691973,13.87128439,149.1,149.04,16.24]
[1746581692579,13.87128439,149.1,149.05,0.14216157]
[1746581692786,13.87128439,149.11,149.05,18.79181043]
[1746581692989,137.7,149.12,149.05,18.79181043]
[1746581692990,6.3566,149.14,149.07,0.14216157]
[1746581693163,6.3566,149.14,149.06,1.5292]
[1746581693164,1.4742,149.17,149.09,0.14216157]
[1746581693367,13.87128439,149.14,149.1,16.24]
[1746581693782,13.87128439,149.14,149.11,6.70645831]
[1746581693985,13.87128439,149.13,149.11,6.70645831]
[1746581694191,6.3566,149.18,149.11,6.70645831]
[1746581694701,13.87128439,149.14,149.11,23.4726041]
[1746581698374,13.87128439,149.13,149.11,23.4726041]
[1746581698671,13.87128439,149.14,149.11,23.4726041]
[1746581698970,13.87128439,149.13,149.11,23.4726041]
[1746581699389,13.87128439,149.14,149.11,23.4726041]
[1746581699890,137.7,149.17,149.11,23.4726041]
[1746581700067,13.87128439,149.14,149.11,23.4726041]
[1746581701800,137.7,149.16,149.11,23.4726041]
[1746581702098,13.87128439,149.15,149.11,23.4726041]
[1746581703981,151.57128439,149.16,149.11,23.4726041]
[1746581704293,137.7,149.16,149.11,23.4726041]
[1746581704585,13.87128439,149.14,149.11,23.4726041]
[1746581704899,13.87128439,149.15,149.11,23.4726041]
[1746581705373,151.57128439,149.16,149.11,23.4726041]
[1746581705573,151.57128439,149.16,149.12,0.14216157]
[1746581705789,13.87128439,149.18,149.12,1.76296157]
[1746581706091,13.87128439,149.18,149.14,0.14216157]
[1746581706386,13.87128439,149.18,149.15,16.26]
[1746581706970,13.87128439,149.18,149.16,6.70421024]
[1746581709401,137.7,149.2,149.16,6.70421024]
[1746581709584,137.7,149.2,149.16,23.46473585]
[1746581709773,151.57128439,149.2,149.16,23.46473585]
[1746581710486,13.87128439,149.2,149.16,23.46473585]
[1746581711374,13.87128439,149.19,149.16,23.46473585]
[1746581713300,13.87128439,149.18,149.16,6.70421024]
[1746581714099,13.87128439,149.19,149.16,6.70421024]
[1746581715902,26.0,149.22,149.16,6.70421024]
[1746581716197,13.87128439,149.19,149.16,6.70421024]
[1746581716378,13.87128439,149.18,149.16,6.70421024]
[1746581717082,13.87128439,149.18,149.16,22.94421024]
[1746581719377,13.87128439,149.19,149.16,22.94421024]
[1746581722415,13.87128439,149.18,149.16,22.94421024]
[1746581724524,6.70149507,149.23,149.16,22.94421024]
[1746581724812,13.87128439,149.18,149.16,22.94421024]
[1746581726615,13.87128439,149.19,149.16,22.94421024]
[1746581729114,13.87128439,149.2,149.16,22.94421024]
[1746581729306,13.87128439,149.19,149.16,22.94421024]
[1746581730617,137.7,149.22,149.16,55.92473585]
[1746581730825,13.87128439,149.2,149.16,55.92473585]
[1746581733727,137.7,149.22,149.16,55.92473585]
[1746581734224,13.87128439,149.2,149.16,55.92473585]
[1746581736923,13.87128439,149.19,149.16,55.92473585]
[1746581737427,13.87128439,149.18,149.16,55.92473585]
[1746581737730,13.87128439,149.19,149.16,55.92473585]
[1746581737926,13.87128439,149.18,149.16,39.68473585]
[1746581738112,13.87128439,149.18,149.16,55.92473585]
[1746581739105,13.87128439,149.18,149.16,22.92421024]
[1746581739305,13.87128439,149.18,149.16,39.16421024]
[1746581740910,13.87128439,149.17,149.16,22.92421024]
[1746581741618,13.87128439,149.17,149.15,6.70446012]
[1746581741817,13.87128439,149.16,149.15,6.70446012]
[1746581742633,13.87128439,149.17,149.14,16.24]
[1746581743736,13.87128439,149.16,149.14,16.24]
[1746581744735,13.87128439,149.16,149.15,6.70465973]
[1746581748134,13.87128439,149.17,149.15,6.70465973]
[1746581749108,13.87128439,149.16,149.13,6.7055589]
[1746581749314,13.87128439,149.14,149.13,6.7055589]
[1746581749739,13.87128439,149.14,149.12,22.92582539]
[1746581749922,13.87128439,149.13,149.11,6.7062857]
[1746581750235,13.87128439,149.17,149.08,17.7343]
[1746581750236,13.87128439,149.12,149.09,6.70735797]
[1746581750436,13.87128439,149.11,149.09,6.70735797]
[1746581751337,13.87128439,149.12,149.09,6.70735797]
[1746581753247,13.87128439,149.13,149.09,6.70735797]
[1746581754838,13.87128439,149.13,149.09,23.47575289]
[1746581755019,13.87128439,149.12,149.09,23.47575289]
[1746581760134,13.87128439,149.13,149.09,23.47575289]
[1746581761035,13.87128439,149.12,149.09,23.47575289]
[1746581761851,13.87128439,149.13,149.09,23.47575289]
[1746581762329,137.7,149.15,149.09,23.47575289]
[1746581762655,13.87128439,149.13,149.09,23.47575289]
[1746581763557,13.87128439,149.12,149.09,23.47575289]
[1746581765549,137.7,149.15,149.1,0.14216157]
[1746581765769,13.87128439,149.14,149.1,0.14216157]
[1746581765929,151.57128439,149.15,149.1,0.14216157]
[1746581766846,151.57128439,149.15,149.1,18.79181043]
[1746581767039,137.7,149.15,149.1,18.79181043]
[1746581767244,137.7,149.15,149.12,0.14216157]
[1746581767441,137.7,149.15,149.13,32.44]
[1746581767740,13.87128439,149.17,149.13,32.44]
[1746581768156,13.87128439,149.16,149.13,32.44]
[1746581770254,13.87128439,149.15,149.14,6.70510929]
[1746581770850,137.7,149.19,149.14,6.70510929]
[1746581771343,13.87128439,149.18,149.14,23.46788252]
[1746581771555,137.7,149.19,149.15,0.14216157]
[1746581772252,151.57128439,149.19,149.15,0.14216157]
[1746581772559,13.87128439,149.16,149.11,16.76512577]
[1746581772762,13.87128439,149.13,149.11,16.76512577]
[1746581772959,13.87128439,149.17,149.11,23.47158408]
[1746581773138,13.87128439,149.13,149.11,23.47158408]
[1746581773636,13.87128439,149.14,149.11,23.47158408]
[1746581774869,13.87128439,149.13,149.11,23.47158408]
[1746581775669,13.87128439,149.12,149.11,6.70645831]
[1746581776669,13.87128439,149.12,149.08,32.98840733]
[1746581776844,13.87128439,149.11,149.09,16.22]
[1746581777772,13.87128439,149.11,149.08,32.98840733]
[1746581777941,13.87128439,149.11,149.09,6.70735797]
[1746581780371,137.7,149.16,149.09,6.70735797]
[1746581780555,13.87128439,149.13,149.09,23.47575289]
[1746581780969,13.87128439,149.12,149.09,23.47575289]
[1746581783556,13.87128439,149.13,149.11,6.70645831]
[1746581784376,13.87128439,149.14,149.11,6.70645831]
[1746581784550,13.87128439,149.15,149.11,23.4726041]
[1746581788672,137.7,149.21,149.12,18.79181043]
[1746581788857,13.87128439,149.16,149.13,32.44]
[1746581789978,13.87128439,149.14,149.13,16.22]
[1746581790380,13.87128439,149.14,149.11,6.70645831]
[1746581790571,13.87128439,149.13,149.11,6.70645831]
[1746581791888,20.52528439,149.17,149.11,6.70645831]
[1746581792055,13.87128439,149.13,149.11,6.70645831]
[1746581793472,20.52528439,149.17,149.11,6.70645831]
[1746581793664,13.87128439,149.14,149.11,6.70645831]
[1746581794777,13.87128439,149.14,149.1,6.84906968]
[1746581794962,13.87128439,149.14,149.1,23.08906968]
[1746581795157,13.87128439,149.14,149.1,39.85633996]
[1746581796168,13.87128439,149.15,149.1,39.85633996]
[1746581796880,6.654,149.17,149.1,39.85633996]
[1746581797055,13.87128439,149.16,149.12,0.14216157]
[1746581797257,143.8902,149.2,149.12,0.14216157]
[1746581797565,13.87128439,149.18,149.12,1.79886157]
[1746581798783,13.87128439,149.18,149.14,0.14216157]
[1746581798971,13.87128439,149.18,149.15,16.24]
[1746581799285,13.87128439,149.19,149.15,16.24]
[1746581799481,13.87128439,149.16,149.14,16.22]
[1746581799684,13.87128439,149.15,149.1,16.22]
[1746581799979,13.87128439,149.11,149.1,22.92673842]
[1746581802068,6.70456173,149.16,149.1,22.92673842]
[1746581802269,13.87128439,149.11,149.1,22.92673842]
[1746581803679,13.87128439,149.11,149.1,16.22]
[1746581803878,13.87128439,149.11,149.1,22.92690811]
[1746581808690,13.87128439,149.11,149.08,6.70780788]
[1746581810392,13.87128439,149.12,149.08,23.4773276]
[1746581810693,13.87128439,149.13,149.08,23.4773276]
[1746581812211,13.87128439,149.12,149.08,23.4773276]
[1746581812377,13.87128439,149.11,149.08,23.4773276]
[1746581812905,13.87128439,149.12,149.08,23.4773276]
[1746581820814,13.87128439,149.11,149.08,23.4773276]
[1746581821216,13.87128439,149.12,149.08,23.4773276]
[1746581822512,144.3638,149.15,149.08,23.4773276]
[1746581822722,13.87128439,149.13,149.08,23.4773276]
[1746581822918,13.87128439,149.13,149.09,0.14216157]
[1746581823496,13.87128439,149.11,149.08,23.4773276]
[1746581834528,13.87128439,149.11,149.08,39.6973276]
[1746581836223,13.87128439,149.11,149.08,23.4773276]
[1746581836434,13.87128439,149.11,149.08,39.6973276]
[1746581837734,13.87128439,149.1,149.08,22.92780788]
[1746581838115,13.87128439,149.1,149.08,6.70780788]
[1746581838319,13.87128439,149.11,149.08,6.70780788]
[1746581838637,13.87128439,149.1,149.08,6.70780788]
[1746581839415,13.87128439,149.09,149.08,6.70780788]
[1746581845423,13.87128439,149.09,149.07,22.9281974]
[1746581845625,13.87128439,149.08,149.07,22.9281974]
[1746581849740,13.87128439,149.08,149.05,6.709158]
[1746581850041,13.87128439,149.06,149.05,6.709158]
[1746581850851,13.87128439,149.06,149.03,16.2]
[1746581851044,13.87128439,149.04,149.03,22.90991349]
[1746581851552,137.7,149.09,149.03,22.90991349]
[1746581852053,13.87128439,149.07,149.03,39.68505943]
[1746581852443,137.7,149.09,149.03,39.68505943]
[1746581852761,137.7,149.09,149.04,0.14216157]
[1746581852762,151.57128439,149.09,149.04,0.14216157]
[1746581853350,151.57128439,149.09,149.05,23.482053]
[1746581853549,137.7,149.09,149.05,25.035853]
[1746581853752,13.87128439,149.11,149.06,0.14216157]
[1746581854058,137.7,149.14,149.07,16.22]
[1746581854259,13.87128439,149.12,149.07,16.22]
[1746581854464,13.87128439,149.11,149.07,16.22]
[1746581855261,13.87128439,149.11,149.08,23.4773276]
[1746581855436,13.87128439,149.12,149.08,23.4773276]
[1746581855759,13.87128439,149.12,149.08,39.6773276]
[1746581857657,13.87128439,149.11,149.08,39.6773276]
[1746581858974,137.7,149.14,149.08,39.6773276]
[1746581859139,13.87128439,149.12,149.08,39.6773276]
[1746581859777,137.7,149.14,149.09,0.14216157]
[1746581860153,137.7,149.14,149.09,18.79181043]
[1746581860353,3.56480243,149.11,149.1,1.5122]
[1746581861869,3.56480243,149.11,149.1,8.21910811]
[1746581862376,3.56480243,149.11,149.1,8.36126968]
[1746581865251,17.43608682,149.11,149.1,8.36126968]
[1746581865456,3.56480243,149.11,149.1,8.36126968]
[1746581866656,17.43608682,149.11,149.1,6.70690811]
[1746581866972,17.43608682,149.11,149.1,5.81800811]
[1746581867170,17.43608682,149.11,149.08,22.90762743]
[1746581867368,13.87128439,149.09,149.08,22.02442743]
[1746581867564,13.87128439,149.09,149.08,6.70762743]
[1746581868578,13.87128439,149.09,149.06,6.7087079]
[1746581869965,13.87128439,149.08,149.06,6.7087079]
[1746581870675,13.87128439,149.09,149.06,23.48047765]
[1746581870878,3.56480243,149.11,149.06,23.48047765]
[1746581871172,13.87128439,149.09,149.06,23.48047765]
[1746581871674,3.56480243,149.11,149.07,0.14216157]
[1746581871873,17.43608682,149.11,149.08,23.4773276]
[1746581872079,3.56480243,149.11,149.08,23.4773276]
[1746581872452,3.56480243,149.11,149.09,16.2]
[1746581872666,3.56480243,149.11,149.1,16.2]
[1746581873872,3.56480243,149.11,149.1,22.90690811]
[1746581874972,3.56480243,149.11,149.1,23.04906968]
[1746581880695,3.56480243,149.11,149.1,67.69871854]
[1746581884196,3.56480243,149.11,149.1,6.70690811]
[1746581884380,17.43608682,149.11,149.1,6.70690811]
[1746581888799,17.43608682,149.11,149.09,22.90727317]
[1746581888989,13.87128439,149.1,149.09,22.90727317]
[1746581892483,13.87128439,149.1,149.09,6.70727317]
[1746581893103,3.56480243,149.11,149.07,6.70825786]
[1746581893280,13.87128439,149.09,149.07,6.70825786]
[1746581894687,13.87128439,149.08,149.07,6.70825786]
[1746581896001,13.87128439,149.08,149.06,6.7087079]
[1746581897477,13.87128439,149.07,149.06,6.7087079]
[1746581904511,141.26480243,149.11,149.06,6.7087079]
[1746581904716,13.87128439,149.07,149.06,6.7087079]
[1746581905015,13.87128439,149.08,149.06,6.7087079]
[1746581905211,141.26480243,149.11,149.06,6.7087079]
[1746581905387,13.87128439,149.09,149.06,6.7087079]
[1746581906504,13.87128439,149.08,149.06,6.7087079]
[1746581907388,13.87128439,149.07,149.06,6.7087079]
[1746581910928,13.87128439,149.08,149.06,6.7087079]
[1746581912036,13.87128439,149.09,149.06,6.7087079]
[1746581915138,155.13608682,149.11,149.06,23.48047765]
[1746581915329,3.56480243,149.11,149.07,0.14216157]
[1746581917228,3.56480243,149.11,149.08,23.4773276]
[1746581917726,3.56480243,149.11,149.09,16.18]
[1746581917939,17.43608682,149.11,149.09,16.18]
[1746581918526,13.87128439,149.1,149.09,16.18]
[1746581919426,13.87128439,149.1,149.09,22.88735797]
[1746581922625,13.87128439,149.1,149.09,6.70735797]
[1746581923019,13.87128439,149.1,149.08,6.70766815]
[1746581923209,13.87128439,149.09,149.08,6.70766815]
[1746581925235,13.87128439,149.09,149.06,23.48047343]
[1746581926640,13.87128439,149.07,149.06,6.7087079]
[1746581930544,13.87128439,149.08,149.06,6.7087079]
[1746581931028,13.87128439,149.09,149.06,6.7087079]
[1746581931345,13.87128439,149.08,149.06,6.7087079]
[1746581932544,13.87128439,149.09,149.06,23.48047765]
[1746581933448,3.56480243,149.11,149.06,23.48047765]
[1746581933743,13.87128439,149.1,149.07,0.14216157]
[1746581935341,13.87128439,149.1,149.08,6.70780788]
[1746581939345,3.56480243,149.11,149.08,6.70780788]
[1746581939648,13.87128439,149.1,149.08,6.70780788]
[1746581940838,13.87128439,149.09,149.08,6.70780788]
[1746581944665,3.56480243,149.11,149.08,6.70780788]
[1746581944948,13.87128439,149.09,149.08,6.70780788]
[1746581946549,3.56480243,149.11,149.08,6.70780788]
[1746581946849,13.87128439,149.09,149.08,6.70780788]
[1746581947550,3.56480243,149.11,149.08,6.70780788]
[1746581948048,13.87128439,149.1,149.08,6.70780788]
[1746581952753,13.87128439,149.09,149.06,6.7087079]
[1746581952947,13.87128439,149.07,149.06,6.7087079]
[1746581953256,13.87128439,149.07,149.05,16.2]
[1746581953438,13.87128439,149.06,149.04,6.70922192]
[1746581953642,13.87128439,149.05,149.04,6.70922192]
[1746581954340,13.87128439,149.06,149.04,6.70922192]
[1746581954547,13.87128439,149.07,149.04,6.70922192]
[1746581954851,13.87128439,149.07,149.04,16.77402039]
[1746581958260,13.87128439,149.06,149.04,16.77402039]
[1746581963375,13.87128439,149.05,149.03,6.71005837]
[1746581963669,13.87128439,149.04,149.02,6.71050865]
[1746581964046,13.87128439,149.04,149.02,23.48678029]
[1746581964751,137.7,149.08,149.02,23.48678029]
[1746581964946,13.87128439,149.05,149.02,23.48678029]
[1746581965464,13.87128439,149.04,149.02,23.48678029]
[1746581967063,137.7,149.07,149.02,23.48678029]
[1746581967362,177.57128439,149.1,149.02,23.48678029]
[1746581967545,137.7,149.09,149.02,23.48678029]
[1746581967745,13.87128439,149.07,149.02,23.48678029]
[1746581968368,13.87128439,149.07,149.02,57.03932357]
[1746581968558,13.87128439,149.07,149.02,83.03932357]
[1746581970866,137.7,149.09,149.02,83.03932357]
[1746581971061,13.87128439,149.07,149.03,16.16]
[1746581973168,13.87128439,149.07,149.04,23.48362854]
[1746581973471,13.87128439,149.08,149.04,23.48362854]
[1746581974074,13.87128439,149.07,149.04,23.48362854]
[1746581975077,13.87128439,149.06,149.04,23.48362854]
[1746581978980,137.7,149.09,149.04,23.48362854]
[1746581979172,13.87128439,149.06,149.04,23.48362854]
[1746581981783,8.88312281,149.06,149.04,23.48362854]
[1746581991184,8.88312281,149.07,149.04,16.77402039]
[1746581991368,137.7,149.09,149.04,16.77402039]
[1746581991566,8.88312281,149.08,149.04,16.77402039]
[1746581993172,8.88312281,149.07,149.04,16.77402039]
[1746581994384,137.7,149.09,149.04,16.77402039]
[1746581994685,8.88312281,149.08,149.05,16.14]
[1746581996587,8.88312281,149.07,149.06,6.7087079]
[1746582000600,8.88312281,149.07,149.05,22.84896161]
[1746582001795,137.7,149.09,149.05,22.84896161]
[1746582002099,146.58312281,149.09,149.05,22.84896161]
[1746582002295,8.88312281,149.07,149.05,22.84896161]
[1746582003299,137.7,149.09,149.05,22.84896161]
[1746582003698,137.7,149.09,149.05,41.14775661]
[1746582005578,137.7,149.09,149.06,0.14216157]
[1746582005984,3.56480243,149.11,149.06,18.79181043]
[1746582006402,3.56480243,149.11,149.06,25.18711043]
[1746582006704,3.56480243,149.11,149.08,18.79181043]
[1746582006886,3.56480243,149.11,149.1,0.14216157]
[1746582007089,3.56480243,149.11,149.1,16.28216157]
[1746582007491,3.56480243,149.11,149.1,22.98906968]
[1746582009222,3.56480243,149.11,149.1,50.51286968]
[1746582009387,3.56480243,149.11,149.1,69.16251854]
[1746582009891,137.7,149.21,149.14,0.14216157]
[1746582010096,137.7,149.21,149.15,32.28]
[1746582010312,8.88312281,149.2,149.15,32.28]
[1746582010809,137.7,149.21,149.15,32.28]
[1746582010992,8.88312281,149.2,149.15,32.28]
[1746582011504,8.88312281,149.2,149.16,23.46473585]
[1746582011708,13.85430532,149.2,149.16,23.46473585]
[1746582013014,13.85430532,149.19,149.16,23.46473585]
[1746582013412,13.85430532,149.2,149.16,23.46473585]
[1746582013610,13.85430532,149.2,149.15,32.28]
[1746582013611,13.85430532,149.17,149.15,16.14]
[1746582013802,13.85430532,149.16,149.15,16.14]
[1746582014006,13.85430532,149.16,149.13,6.70539385]
[1746582014314,13.85430532,149.14,149.13,6.70539385]
[1746582015712,13.85430532,149.14,149.12,22.84584405]
[1746582015901,13.85430532,149.13,149.12,22.84584405]
[1746582022217,20.55824354,149.17,149.12,22.84584405]
[1746582022218,13.85430532,149.14,149.12,22.84584405]
[1746582028322,20.55824354,149.17,149.12,22.84584405]
[1746582028522,13.85430532,149.13,149.12,22.84584405]
[1746582030026,13.85430532,149.14,149.12,22.84584405]
[1746582033341,13.85430532,149.14,149.12,16.14]
[1746582033714,13.85430532,149.13,149.12,16.14]
[1746582034612,13.85430532,149.13,149.12,22.84600858]
[1746582036725,13.85430532,149.13,149.12,16.14]
[1746582038130,6.70394153,149.17,149.12,22.84600858]
[1746582038508,13.85430532,149.14,149.12,22.84600858]
[1746582039740,8.87460306,149.14,149.12,22.84600858]
[1746582056343,8.87460306,149.14,149.11,6.70645831]
[1746582056544,8.87460306,149.12,149.1,16.12]
[1746582056752,8.87460306,149.11,149.1,16.12]
[1746582056953,8.87460306,149.11,149.08,6.70767107]
[1746582056954,8.87460306,149.11,149.07,6.7080717]
[1746582057137,139.3107,149.14,149.07,6.7080717]
[1746582057453,8.87460306,149.08,149.06,22.82859781]
[1746582057750,8.87460306,149.07,149.06,16.12]
[1746582059723,13.88036119,149.07,149.06,22.8287079]
[1746582060528,137.7,149.11,149.06,22.8287079]
[1746582060729,13.88036119,149.08,149.06,22.8287079]
[1746582061150,137.7,149.1,149.06,22.8287079]
[1746582061534,13.88036119,149.08,149.06,22.8287079]
[1746582064462,13.88036119,149.09,149.06,22.8287079]
[1746582064767,13.88036119,149.08,149.06,22.8287079]
[1746582065158,13.88036119,149.07,149.06,22.8287079]
[1746582065663,13.88036119,149.07,149.03,6.71005837]
[1746582065864,13.88036119,149.05,149.03,6.71005837]
[1746582068137,13.88036119,149.04,149.02,22.81038901]
[1746582068374,13.88036119,149.03,149.02,22.81038901]
[1746582068666,13.88036119,149.03,149.0,6.71140939]
[1746582068876,13.88036119,149.02,149.0,6.71140939]
[1746582069449,13.88036119,149.03,149.0,6.71140939]
[1746582069683,13.88036119,149.01,148.99,6.71185985]
[1746582070368,144.40919352,149.05,148.95,1.5085]
[1746582070369,13.88036119,149.0,148.95,1.5085]
[1746582070546,13.88036119,148.98,148.95,1.5085]
[1746582071667,13.88036119,148.98,148.96,6.7132116]
[1746582073072,13.88036119,148.99,148.96,6.7132116]
[1746582075363,13.88036119,148.97,148.95,6.7136623]
[1746582075778,13.88036119,148.98,148.95,6.7136623]
[1746582077278,13.88036119,148.97,148.94,22.83395952]
[1746582077474,13.88036119,148.95,148.94,22.83395952]
[1746582078275,39.88036119,148.95,148.9,6.71591672]
[1746582078468,13.88036119,148.93,148.9,6.71591672]
[1746582079395,13.88036119,148.91,148.89,16.5371418]
[1746582079560,13.88036119,148.9,148.89,16.5371418]
[1746582080083,13.88036119,148.9,148.89,0.4171418]
[1746582080589,144.41569072,148.91,148.89,0.4171418]
[1746582080759,13.88036119,148.9,148.89,0.4171418]
[1746582081064,27.76072238,148.9,148.89,0.4171418]
[1746582081264,137.7,148.91,148.89,0.4171418]
[1746582081577,13.88036119,148.9,148.89,0.4171418]
[1746582081889,137.7,148.91,148.89,0.4171418]
[1746582082090,13.88036119,148.9,148.89,0.4171418]
[1746582082763,137.7,148.91,148.89,7.13340681]
[1746582082969,13.88036119,148.9,148.89,7.13340681]
[1746582083182,137.7,148.91,148.89,7.13340681]
[1746582083183,151.58036119,148.91,148.89,7.13340681]
[1746582083387,13.88036119,148.9,148.89,7.13340681]
[1746582085107,13.88036119,148.9,148.89,7.13350958]
[1746582088518,137.7,148.91,148.89,7.13350958]
[1746582091722,13.88036119,148.9,148.89,7.13350958]
[1746582091904,13.88036119,148.9,148.89,0.4171418]
[1746582092111,13.88036119,148.9,148.89,7.13350958]
[1746582092926,137.7,148.91,148.89,7.13350958]
[1746582093099,13.88036119,148.9,148.89,7.13350958]
[1746582095426,13.88036119,148.9,148.89,0.4171418]
[1746582096426,27.76072238,148.9,148.89,0.4171418]
[1746582096612,62.0251391,148.9,148.89,0.4171418]
[1746582097809,18.64964886,148.89,148.82,6.71938033]
[1746582098133,13.88036119,148.83,148.82,6.71938033]
[1746582100031,13.88036119,148.85,148.82,6.71938033]
[1746582100233,13.88036119,148.84,148.82,6.71938033]
[1746582102824,13.88036119,148.84,148.81,16.79970797]
[1746582103024,13.88036119,148.84,148.82,16.14]
[1746582103331,13.88036119,148.83,148.8,16.12]
[1746582103629,13.88036119,148.81,148.8,16.12]
[1746582103931,13.88036119,148.81,148.79,6.72088177]
[1746582104315,13.88036119,148.8,148.77,6.72137662]
[1746582104519,13.88036119,148.79,148.77,6.72137662]
[1746582104713,13.88036119,148.8,148.77,6.72137662]
[1746582105315,13.88036119,148.79,148.77,6.72137662]
[1746582105530,13.88036119,148.8,148.77,6.72137662]
[1746582106634,163.7,148.84,148.77,6.72137662]
[1746582106936,13.88036119,148.8,148.77,6.72137662]
[1746582107113,13.88036119,148.79,148.77,22.94137662]
[1746582107313,13.88036119,148.78,148.77,6.72137662]
[1746582107637,13.88036119,148.79,148.77,6.72137662]
[1746582108035,13.88036119,148.78,148.76,23.0420954]
[1746582108721,13.88036119,148.77,148.74,6.72314105]
[1746582108923,13.88036119,148.77,148.75,16.32]
[1746582109627,137.7,148.85,148.76,18.64964886]
[1746582109929,13.88036119,148.84,148.78,18.79181043]
[1746582110127,137.7,148.85,148.79,1.6068]
[1746582110333,13.88036119,148.82,148.8,16.34]
[1746582110551,13.88036119,148.82,148.8,23.06029329]
[1746582110828,137.7,148.85,148.8,23.06029329]
[1746582111042,151.58036119,148.85,148.8,23.06029329]
[1746582111221,13.88036119,148.84,148.8,23.06029329]
[1746582111428,137.7,148.85,148.8,23.06029329]
[1746582111633,13.88036119,148.83,148.78,23.08133351]
[1746582111934,13.88036119,148.84,148.78,23.08133351]
[1746582112618,13.88036119,148.83,148.78,23.08133351]
[1746582113038,151.58036119,148.82,148.78,23.08133351]
[1746582113335,151.58036119,148.81,148.77,22.86166176]
[1746582113845,137.7,148.81,148.77,22.86166176]
[1746582115536,151.58036119,148.81,148.77,22.86166176]
[1746582115725,137.7,148.81,148.77,22.86166176]
[1746582116637,137.7,148.81,148.77,39.66612502]
[1746582118921,137.7,148.81,148.78,18.64964886]
[1746582119139,137.7,148.81,148.79,6.72088177]
[1746582119937,26.0,148.84,148.8,32.57055386]
[1746582120135,144.41734684,148.87,148.83,13.920905]
[1746582120136,137.7,148.87,148.83,13.920905]
[1746582120337,137.7,148.86,148.85,13.920905]
[1746582120828,137.7,148.89,148.85,49.01055386]
[1746582121033,137.7,148.89,148.87,13.920905]
[1746582121624,137.7,148.92,148.88,13.920905]
[1746582121830,137.7,148.92,148.9,22.25115208]
[1746582122246,137.7,148.92,148.88,18.64964886]
[1746582122424,137.7,148.92,148.9,22.25115208]
[1746582122624,137.7,148.92,148.91,22.25115208]
[1746582123243,137.7,148.92,148.88,18.64964886]
[1746582123244,137.7,148.92,148.89,22.25115208]
[1746582124041,137.7,148.92,148.89,28.96747671]
[1746582124347,137.7,148.92,148.88,25.36633992]
[1746582124523,137.7,148.92,148.89,22.25115208]
[1746582124727,137.7,148.92,148.88,25.36633992]
[1746582125036,159.95115208,148.92,148.87,23.15717497]
[1746582125241,22.25115208,148.91,148.87,38.69115208]
[1746582125448,22.25115208,148.89,148.87,16.44]
[1746582125623,22.25115208,148.89,148.85,22.25115208]
[1746582125823,22.25115208,148.89,148.84,23.25817583]
[1746582125824,137.7,148.9,148.86,22.25115208]
[1746582126046,159.95115208,148.9,148.86,22.25115208]
[1746582126345,22.25115208,148.89,148.85,22.25115208]
[1746582126719,159.95115208,148.9,148.86,22.25115208]
[1746582127122,159.95115208,148.9,148.87,22.25115208]
[1746582127123,137.7,148.9,148.87,22.25115208]
[1746582127626,137.7,148.9,148.87,28.96824765]
[1746582127828,137.7,148.9,148.88,22.25115208]
[1746582128950,137.7,148.9,148.87,28.96824765]
[1746582129118,159.95115208,148.9,148.87,6.71709557]
[1746582129737,137.7,148.9,148.87,6.71709557]
[1746582130419,137.7,148.9,148.87,28.96824765]
[1746582131929,137.7,148.9,148.87,28.86239765]
[1746582132554,137.7,148.9,148.88,22.25115208]
[1746582133052,137.7,148.9,148.87,22.25115208]
[1746582133931,137.7,148.9,148.86,25.36720082]
[1746582134147,159.95115208,148.9,148.86,25.36720082]
[1746582134330,137.7,148.9,148.87,22.25115208]
[1746582135343,159.95115208,148.9,148.86,47.6183529]
[1746582136248,22.25115208,148.89,148.84,6.71846102]
[1746582136437,159.95115208,148.89,148.84,28.9696131]
[1746582136631,22.25115208,148.88,148.84,28.9696131]
[1746582136830,22.25115208,148.87,148.83,64.03982174]
[1746582137659,6.71690962,148.88,148.83,64.03982174]
[1746582137828,28.9680617,148.88,148.84,22.25115208]
[1746582139028,22.25115208,148.88,148.84,22.25115208]
[1746582139326,22.25115208,148.87,148.84,22.25115208]
[1746582139544,22.25115208,148.87,148.83,64.03982174]
[1746582140041,22.25115208,148.87,148.83,45.39017288]
[1746582140252,22.25115208,148.87,148.84,22.25115208]
[1746582140947,28.96802333,148.88,148.84,22.25115208]
[1746582141650,28.96802333,148.88,148.83,23.1390208]
[1746582141853,28.96802333,148.88,148.84,22.25115208]
[1746582143035,137.7,148.89,148.86,22.25115208]